Cogmind - Beta 15 @@@ ROGUE MODE // 2025.08.21 @ 10:42:13 Player: SadBl0ckBoy Result: Self-destructed Performance ------------- Evolutions (1) 500 Regions Visited (2) 400 Robots Destroyed (36) 180 Value Destroyed (434) 434 Prototype IDs (0) 0 Alien Tech Used (0) 0 Bonus (0) 0 TOTAL SCORE: 1514 Bonus ------- None Cogmind --------- Core Integrity 231/400 Matter 290/300 Energy 100/100 System Corruption 1% Temperature Cool (6) Movement Core (400) Ox7 Location -9/Materials Parts ------- > --- POWER (1) -------- (None) > --- PROPULSION (2) --- (None) > --- UTILITY (4) ------ Large Storage Unit Visual Processing Unit Visual Processing Unit > --- WEAPON (2) ------- Heavy Hammer > --- INVENTORY (15) --- Recalibrator Heavy Hammer Peak State ------------ > --- POWER ------------ Ion Engine > --- PROPULSION ------- Light Treads Light Treads > --- UTILITY ---------- Large Storage Unit Improved Terrain Scanner Seismic Detector Recalibrator > --- WEAPON ----------- Assault Rifle Heavy Hammer > --- INVENTORY -------- Visual Processing Unit Visual Processing Unit Beam Cannon Heavy Hammer [Rating: 15] Favorites ----------- Power Ion Engine Engine Ion Engine Propulsion Light Treads Treads Light Treads Utility Large Storage Unit Device Improved Terrain Scanner Storage Large Storage Unit Processor Visual Processing Unit Protection Medium Armor Plating Weapon Heavy Hammer Energy Gun EM Pulse Gun Energy Cannon Beam Cannon Ballistic Gun Assault Rifle Impact Weapon Heavy Hammer Build | -11 -10 -9 ------- Run | Yrd Mat Mat Slots Evolved 2 | . . 2 Power . | . . . Propulsion . | . . . Utility 2 | . . 2 Weapon . | . . . Parts Attached 17 | 7 5 5 Power 2 | 1 1 . Engine 2 | 1 1 . Core . | . . . Reactor . | . . . Propulsion 2 | 2 . . Treads 2 | 2 . . Leg . | . . . Wheel . | . . . Hover . | . . . Flight . | . . . Utility 8 | 2 2 4 Device 3 | 1 1 1 Storage 2 | 1 1 . Processor 2 | . . 2 Hackware . | . . . Protection 1 | . . 1 Artifact . | . . . Weapon 5 | 2 2 1 Energy Gun 1 | 1 . . Energy Cannon 2 | . 1 1 Ballistic Gun 1 | 1 . . Ballistic Cannon . | . . . Launcher . | . . . Special Weapon . | . . . Impact Weapon 1 | . 1 . Slashing Weapon . | . . . Piercing Weapon . | . . . Special Melee Weapon . | . . . Unidentified Prototypes . | . . . Parts Lost 8 | . . 8 Power 1 | . . 1 Propulsion 2 | . . 2 Utility 3 | . . 3 Weapon 2 | . . 2 Highest Loss Streak 2 | . . 2 To Critical Strikes . | . . . Average Backups 3 | . 4 3 Power . | . . . Propulsion . | . . . Utility 1 | . 2 2 Weapon 1 | . 1 1 Tool/Special . | . . . Unused Backups 1 | . . 1 Power . | . . . Propulsion . | . . . Utility . | . . . Weapon 1 | . . 1 Tool/Special . | . . . Average Slot Usage (%) 94 | . 99 83 Engine 10 | . 14 3 Treads 24 | . 28 19 Device 14 | . 14 14 Storage 12 | . 13 11 Processor 3 | . . 10 Protection 1 | . . 4 Energy Cannon 8 | . 12 2 Ballistic Gun 6 | . 6 7 Impact Weapon 9 | . 9 11 Peak Build Rating 15 | 9 10 15 Average Rating 9 | 7 8 12 On Entrance 6 | . 9 9 Naked Turns . | . . . Heaviest Build 35 | 15 32 35 Greatest Support 40 | 40 40 40 Greatest Overweight (x) 7 | . . 7 Average Overweight (x) . | . . . Largest Inventory Capacity 15 | 8 15 15 Average Capacity 12 | 7 13 15 Most Carried 6 | 5 6 5 Average Carried 3 | . 4 3 Final Capacity 15 | 8 15 15 Final Carried 6 | 1 6 2 Class Distribution -------------------- 100% | Mutant Dominant Class ---------------- Mutant | -10/Materials Mutant | -9/Materials Resources | -11 -10 -9 ----------- Run | Yrd Mat Mat Matter Collected 506 | 236 179 91 Remotely . | . . . Salvage Created 1050 | 217 438 395 Parts 51 | 16 28 7 Haulers Intercepted . | . . . Recyclers Shooed 3 | . 3 . Parts Field Recycled . | . . . Retrieved Matter . | . . . Parts Self-Destructed . | . . . Prevented . | . . . Kills | -11 -10 -9 ------- Run | Yrd Mat Mat Combat Hostiles Destroyed 13 | . 6 7 Melee 5 | . 2 3 Guns 1 | . 1 . Cannons 3 | . 3 . Classes Destroyed 9 | 3 4 2 Worker 11 | 4 5 2 Builder 2 | . 1 1 Tunneler 4 | 2 2 . Recycler 3 | 1 2 . Mechanic 1 | . 1 . Watcher 2 | . 1 1 Swarmer 6 | . 6 . Grunt 6 | . . 6 Sentry 1 | . . 1 Best Kill Streak 7 | 5 7 2 Combat Bots Only 3 | . 3 2 Max Kills in Single Turn 1 | 1 1 1 Gunslinging . | . . . Exploded . | . . . Melee 1 | . 1 1 Uniques/NPCs Destroyed . | . . . Combat | -11 -10 -9 -------- Run | Yrd Mat Mat Hostile Shots Fired 141 | . 30 111 Missed 38 | . 7 31 Hits 103 | . 23 80 Projectile 103 | . 23 80 Damage Taken 1133 | 30 179 924 Core 232 | . 63 169 Absorbed by Shields . | . . . Core Remaining (%) 87 | 100 74 . Volleys Fired 59 | 13 24 22 Largest 2 | 2 2 1 Hottest 80 | 60 80 60 Shots Fired 89 | 26 41 22 Gun 57 | 26 17 14 Cannon 32 | . 24 8 Launcher . | . . . Special . | . . . Kinetic 44 | 13 17 14 Thermal 30 | . 24 6 Explosive . | . . . Electromagnetic 15 | 13 . 2 Robot Hit Streak 5 | 5 5 5 Robot Miss Streak 4 | 1 4 4 Penetration Max . | . . . Secondary Targets . | . . . Shots Hit Robots 82 | 15 34 33 Core Hits 24 | 8 10 6 Critical Kills 1 | . 1 . Critical Parts Destroyed 7 | . 3 4 Critical Strikes 8 | . 4 4 Meltdown 1 | . 1 . Smash 7 | . 3 4 Melee Attacks 37 | . 15 22 Impact 37 | . 15 22 Slashing . | . . . Piercing . | . . . Sneak Attacks 14 | . 10 4 Combat Hostiles . | . . . Follow-up Attacks . | . . . Damage Inflicted 2557 | 221 1206 1130 Guns 410 | 189 102 119 Cannons 362 | . 260 102 Explosions 29 | 29 . . Melee 1753 | . 844 909 Ramming 3 | 3 . . Kinetic 289 | 68 102 119 Thermal 341 | 29 260 52 Explosive . | . . . Electromagnetic 171 | 121 . 50 Impact 1753 | . 844 909 Slashing . | . . . Piercing . | . . . Highest Corruption 1 | . 1 1 Average Corruption 1 | . 1 1 Corruption Purged . | . . . Corruption Blocked . | . . . Effects 6 | . 2 4 Message Errors 2 | . 1 1 Matter Fused 2 | . . 2 Parts Rejected 1 | . . 1 Parts Fused 1 | . 1 . Overload Shots . | . . . Overflow Damage 784 | . 420 364 Projectiles 2 | . 2 . Explosions . | . . . Melee 782 | . 418 364 Knockbacks 8 | . 3 5 Impact 8 | . 3 5 Kinetic . | . . . Secondary . | . . . Self-Inflicted Damage 30 | 30 . . Shots 1 | 1 . . Rammed 1 | 1 . . Targets Rammed 1 | 1 . . Kicked . | . . . Crushed . | . . . Highest Temperature 72 | 12 72 24 Average Temperature 23 | 12 26 9 Received Heat Transfer 492 | . . 492 Siege Activations . | . . . Martial Activations . | . . . Shielding Activations . | . . . Robots Disrupted . | . . . Combat Hostiles . | . . . Robots Corrupted 10 | . 4 6 Combat Hostiles 4 | . . 4 Parts Fried 20 | . 7 13 Impact Corruptions 29 | . 13 16 Robots Melted 1 | . 1 . Combat Hostiles . | . . . Parts Melted 1 | . 1 . Heat Transferred 716 | 50 555 111 Parts Sabotaged . | . . . Parts Stolen . | . . . Parts Stripped . | . . . Power Chain Reactions 1 | 1 . . Alert | -11 -10 -9 ------- Run | Yrd Mat Mat Maximum Alert Level . | . . . Low Security (%) 100 | 100 100 100 Level 1 . | . . . Level 2 . | . . . Level 3 . | . . . Level 4 . | . . . Level 5 . | . . . High Security . | . . . Max Security . | . . . Peak Influence 68 | 15 68 50 Initial 3 | . 3 . Average 12 | 1 15 14 Influence Increases 435 | 35 203 197 Destroy 0b10 Robot/C 260 | . 120 140 Destroy 0b10 Robot/NC 115 | 35 60 20 Destroy Leader 44 | . 22 22 Destroy Structure 1 | . 1 . Lose Combat Pursuer 15 | . . 15 Influence Decreases 435 | 30 208 197 Entered New Map 2 | . 2 . Time Decay 386 | 30 206 150 Lost Part 47 | . . 47 Squads Dispatched 1 | . . 1 Investigation . | . . . Extermination . | . . . Reinforcement 1 | . . 1 Assault . | . . . Garrison . | . . . Intercept . | . . . Searches Triggered . | . . . Construction Impeded . | . . . Haulers Reinforced . | . . . Active Scanning Responses . | . . . Cargo Convoy Interrupts . | . . . Stealth | -11 -10 -9 --------- Run | Yrd Mat Mat Distress Signals 1 | . . 1 Communications Jammed . | . . . Distress Signals . | . . . Times Spotted 24 | . 12 12 Peak Tracking Total 4 | . 4 3 Tactical Retreats 1 | . . 1 Traps | -11 -10 -9 ------- Run | Yrd Mat Mat Traps Triggered 2 | . 1 1 Indirectly . | . . . Trap Hack Attempts . | . . . Triggered . | . . . Disarmed . | . . . Reprogrammed . | . . . Reused . | . . . Traps Extracted . | . . . Installed . | . . . Triggered . | . . . Machines | -11 -10 -9 ---------- Run | Yrd Mat Mat Machines Disabled . | . . . Max in Single Turn . | . . . Machines Repaired . | . . . Machines Dismantled . | . . . Machines Sabotaged . | . . . Overloaded Fab Kills . | . . . Hacking | -11 -10 -9 --------- Run | Yrd Mat Mat Machines Accessed . | . . . Terminals . | . . . Fabricators . | . . . Repair Stations . | . . . Recycling Units . | . . . Scanalyzers . | . . . Garrison Access . | . . . Total Hacks . | . . . Successful . | . . . Failed . | . . . Catastrophic . | . . . Database Lockouts . | . . . Manual . | . . . Terminals . | . . . Fabricators . | . . . Repair Stations . | . . . Recycling Units . | . . . Scanalyzers . | . . . Garrison Access . | . . . Terminal Hacks . | . . . Fabricator Hacks . | . . . Repair Station Hacks . | . . . Recycling Unit Hacks . | . . . Scanalyzer . | . . . Garrison Access Hacks . | . . . Unauthorized Hacks . | . . . Terminals . | . . . Fabricators . | . . . Repair Stations . | . . . Recycling Units . | . . . Scanalyzers . | . . . Garrison Access . | . . . Data Cores Recovered . | . . . Used . | . . . Hacking Detections . | . . . Full Trace Events . | . . . Feedback Events . | . . . Feedback Blocked . | . . . Robot Schematics Acquired . | . . . Robots Built . | . . . Authchips . | . . . Time . | . . . Total Robot Build Rating . | . . . Part Schematics Acquired . | . . . Parts Built . | . . . Authchips . | . . . Time . | . . . Total Part Build Rating . | . . . Parts Repaired . | . . . Time . | . . . Parts Recycled . | . . . Recycled Matter . | . . . Retrieved Matter . | . . . Retrieved Components . | . . . Parts Scanalyzed . | . . . Part Schematics Acquired . | . . . Parts Damaged . | . . . Bothacking | -11 -10 -9 ------------ Run | Yrd Mat Mat Used RIF Installer . | . . . Robots Hacked . | . . . Non-combat . | . . . Combat . | . . . Robot Hacks Applied . | . . . Relay Couplers Released . | . . . Fabnet Peak Effective % . | . . . Robots Rewired . | . . . Allies Hacked . | . . . Hacks Repelled . | . . . Allies | -11 -10 -9 -------- Run | Yrd Mat Mat Total Allies . | . . . Largest Group . | . . . Highest-Rated Group . | . . . Highest-Rated Ally . | . . . Total Orders . | . . . Ally Attacks . | . . . Total Damage . | . . . Kills . | . . . Allies Corrupted . | . . . Allies Melted . | . . . Intel | -11 -10 -9 ------- Run | Yrd Mat Mat Active Infowar (turns) 1644 | 205 922 517 Optics 488 | . . 488 Terrain 1029 | 205 312 512 Seismic 735 | . 610 125 Robot Analysis Total . | . . . Derelict Logs Recovered . | . . . Drone Launches . | . . . Drone Recoveries . | . . . Exploration | -11 -10 -9 ------------- Run | Yrd Mat Mat Turns Passed 1768 | 329 922 517 Spaces Moved 785 | 74 484 227 Core 10 | 9 . 1 Treads 775 | 65 484 226 Legs . | . . . Wheels . | . . . Hover . | . . . Flight . | . . . Fastest Speed 50 | 50 160 160 Average Speed 163 | 146 160 175 Slowest Speed 400 | 160 160 400 Overloaded Moves . | . . . Propulsion Burnouts . | . . . Robots Hopped . | . . . Potential Cave-ins . | . . . Cave-ins Triggered . | . . . Exploration Rate (%) 19 | 7 25 26 Regions Visited 2 Branch Regions . Pre-discovered Areas . | . . . Known Exits Taken . | . . . Unknown Exits Taken 2 | 1 1 . Scrap Searched . | . . . Spaces Dug . | . . . Terrain Destroyed 2 | 2 . . Melee . | . . . Projectile . | . . . AOE 2 | 2 . . Terrain Rammed . | . . . Walls Destroyed . | . . . Machines Disabled . | . . . Actions | -11 -10 -9 --------- Run | Yrd Mat Mat Total 1116 | 268 563 285 Wait 194 | 166 24 4 Move 783 | 73 483 227 Hop . | . . . Pick Up 18 | 8 8 2 Fast Attach . | . . . Attach 15 | 7 1 7 Detach 1 | . . 1 Swap 5 | . 5 . Drop 3 | . 3 . Fire 59 | 13 24 22 Melee 37 | . 15 22 Ram . | . . . Kick . | . . . Crush 1 | 1 . . Escape Stasis . | . . . Rewire . | . . . Trap . | . . . Miscellaneous . | . . . Route ------- -11/Scrapyard -10/Materials -9/Materials (discovered 1 exit: [*Min]) History --------- Turn | Location | Event 13 | -11/Scrapyard | Discovered new exit (range 16) 330 | -11/Scrapyard | Entered Materials 331 | -10/Materials | Build established: Mutant 608 | -10/Materials | Discovered new exit (range 15) 1252 | -10/Materials | Entered another Materials area 1252 | -9/Materials | Evolved 2 slots: Utility x2 1604 | -9/Materials | Discovered new exit (range 18) 1769 | -9/Materials | Self-destructed Last Messages --------------- W-16 Scout sends out distress signal. U-05 Engineer works on Purification Channel. K-01 Serf collects debris. U-05 Engineer works on Purification Channel. System corrupted: Beam Cannon rejected. U-05 Engineer works on Purification Channel. Note that some effects don't stack, e.g. attaching both Visual Processing Unit and Visual Processing Unit does not combine the two effects (all such effects are marked ). R-06 Scavenger collects Beam Cannon. U-05 Engineer works on Purification Channel. K-01 Serf collects debris. Lgt. Treads destroyed. U-05 Engineer works on Purification Channel. Imp. Terrain Scanner destroyed. U-05 Engineer works on Purification Channel. Map ----- +----------------------------------------------------+ | | | | | | | | | | | | | | | | | ?????????????????????????????????????????????????? | | ?????????????????????????????????????????????????? | | ?????????????????????????????????????????????????? | | ?????????"??????????????????#????????????????????? | | ???????"?" ??????????????????????????????????????? | | ????????"" ??????????????????????????????????????? | | ???????? ?????????????????#????????????????????? | | """?????? ?????????????????????????????????????? | | !!!"#????? ???#????"????????????????????????????? | | ""???###/#######??"???????????????????????????? | | ##### #?????"????????????????????????? | | < ?? +??????????????????????????????? | | ????# #????????????? ????????????????? | | ???## ] #?? ???? ???????????????????????? | | ????# #?????????????? ????????????????? | | #??#?# #??##+##?????????? ?????????????? | | #??#?# #??# ###### "T" #????????????? | | #????# #### r @ w/ #????????????? | | #??#?# u